[Event "*** SCC Grand Prix: Titled Tuesday Blitz"]
[Site "Chess.com"]
[Date "2020.07.21"]
[Round "10"]
[White "Vandros57"]
[Black "amatatanav"]
[Result "0-1"]
[WhiteElo "2137"]
[BlackElo "2474"]
[TimeControl "180+1"]
[EndTime "12:00:12 PDT"]
[Termination "amatatanav won on time"]

1. c4 {[%clk 0:03:00.9]} 1... e6 {[%clk 0:02:59.8]} 2. Nc3 {[%clk 0:02:58.8]}
2... d5 {[%clk 0:03:00.7]} 3. d4 {[%clk 0:02:56.7]} 3... Nf6 {[%clk 0:03:00.4]}
4. cxd5 {[%clk 0:02:55.6]} 4... exd5 {[%clk 0:03:00.3]} 5. Bg5 {[%clk
0:02:54.6]} 5... Be7 {[%clk 0:02:58.8]} 6. e3 {[%clk 0:02:54]} 6... h6 {[%clk
0:02:53.8]} 7. Bxf6 {[%clk 0:02:51.9]} 7... Bxf6 {[%clk 0:02:53.8]} 8. Nf3
{[%clk 0:02:51.3]} 8... O-O {[%clk 0:02:53.4]} 9. Bd3 {[%clk 0:02:50.9]} 9... c6
{[%clk 0:02:52.2]} 10. O-O {[%clk 0:02:50.4]} 10... Re8 {[%clk 0:02:43.6]} 11.
b4 {[%clk 0:02:47.4]} 11... Qd6 {[%clk 0:02:06.9]} 12. Rb1 {[%clk 0:02:43.7]}
12... b5 {[%clk 0:02:05.7]} 13. a4 {[%clk 0:02:39.4]} 13... a6 {[%clk
0:02:03.5]} 14. a5 {[%clk 0:02:35]} 14... Nd7 {[%clk 0:01:58.5]} 15. e4 {[%clk
0:02:29.2]} 15... dxe4 {[%clk 0:01:46.9]} 16. Nxe4 {[%clk 0:02:26.1]} 16... Qd5
{[%clk 0:01:43.1]} 17. Nxf6+ {[%clk 0:02:11.7]} 17... Nxf6 {[%clk 0:01:44]} 18.
Rc1 {[%clk 0:01:58.6]} 18... Bg4 {[%clk 0:01:34.1]} 19. h3 {[%clk 0:01:53]}
19... Bxf3 {[%clk 0:01:32.8]} 20. Qxf3 {[%clk 0:01:51.3]} 20... Qxf3 {[%clk
0:01:26.5]} 21. gxf3 {[%clk 0:01:49.5]} 21... Re6 {[%clk 0:01:24.2]} 22. Rfd1
{[%clk 0:01:04.1]} 22... Rd8 {[%clk 0:01:19.9]} 23. Be4 {[%clk 0:00:59.2]} 23...
Rdd6 {[%clk 0:00:36.4]} 24. d5 {[%clk 0:00:46.1]} 24... Nxd5 {[%clk 0:00:35.8]}
25. Bxd5 {[%clk 0:00:35.2]} 25... Rxd5 {[%clk 0:00:32.4]} 26. Rxd5 {[%clk
0:00:30.4]} 26... cxd5 {[%clk 0:00:33.3]} 27. Rc8+ {[%clk 0:00:24]} 27... Kh7
{[%clk 0:00:33]} 28. Rd8 {[%clk 0:00:23.5]} 28... Kg6 {[%clk 0:00:17.6]} 29.
Rxd5 {[%clk 0:00:22.2]} 29... Kf6 {[%clk 0:00:18.1]} 30. Kg2 {[%clk 0:00:19.4]}
30... Rc6 {[%clk 0:00:18.1]} 31. Rd4 {[%clk 0:00:16.1]} 31... Ke5 {[%clk
0:00:17.4]} 32. Re4+ {[%clk 0:00:15.7]} 32... Kd5 {[%clk 0:00:17.3]} 33. Re7
{[%clk 0:00:14.7]} 33... Rf6 {[%clk 0:00:15.9]} 34. Rc7 {[%clk 0:00:12.6]} 34...
Rf4 {[%clk 0:00:11.7]} 35. Kg3 {[%clk 0:00:09.8]} 35... g5 {[%clk 0:00:11.5]}
36. Ra7 {[%clk 0:00:08.3]} 36... Rf6 {[%clk 0:00:11.1]} 37. Rc7 {[%clk
0:00:07.4]} 37... Rc6 {[%clk 0:00:09.8]} 38. Rxf7 {[%clk 0:00:06.4]} 38... Kc4
{[%clk 0:00:09.9]} 39. f4 {[%clk 0:00:04.5]} 39... gxf4+ {[%clk 0:00:09.4]} 40.
Rxf4+ {[%clk 0:00:04.2]} 40... Kb3 {[%clk 0:00:08.9]} 41. Kg4 {[%clk 0:00:04]}
41... Rc4 {[%clk 0:00:07.5]} 42. h4 {[%clk 0:00:01.9]} 42... Rxb4 {[%clk
0:00:07.7]} 0-1

[Event "*** SCC Grand Prix: Titled Tuesday Blitz"]
[Site "Chess.com"]
[Date "2020.07.21"]
[Round "10"]
[White "fabianvivasz"]
[Black "chesslh19"]
[Result "1/2-1/2"]
[WhiteElo "2278"]
[BlackElo "2179"]
[TimeControl "180+1"]
[EndTime "12:00:13 PDT"]
[Termination "Game drawn - insufficient material"]

1. e4 {[%clk 0:03:00.9]} 1... c5 {[%clk 0:02:57.5]} 2. Nf3 {[%clk 0:02:55.3]}
2... d6 {[%clk 0:02:57.5]} 3. d4 {[%clk 0:02:55.2]} 3... cxd4 {[%clk 0:02:58.4]}
4. Nxd4 {[%clk 0:02:55.2]} 4... Nf6 {[%clk 0:02:59.3]} 5. Nc3 {[%clk 0:02:55.1]}
5... e6 {[%clk 0:02:59.9]} 6. g4 {[%clk 0:02:53]} 6... h6 {[%clk 0:03:00]} 7. h4
{[%clk 0:02:50.8]} 7... Nc6 {[%clk 0:03:00.2]} 8. Rg1 {[%clk 0:02:42]} 8... d5
{[%clk 0:03:00.6]} 9. exd5 {[%clk 0:02:40.7]} 9... Nxd5 {[%clk 0:03:00.3]} 10.
Nxd5 {[%clk 0:02:41]} 10... exd5 {[%clk 0:03:00.1]} 11. Be3 {[%clk 0:02:32.4]}
11... Qxh4 {[%clk 0:02:59.2]} 12. Qf3 {[%clk 0:02:17.6]} 12... Nxd4 {[%clk
0:02:59.3]} 13. Bxd4 {[%clk 0:02:18.5]} 13... Qe7+ {[%clk 0:02:59.7]} 14. Be2
{[%clk 0:02:16.4]} 14... Qe4 {[%clk 0:02:59.8]} 15. O-O-O {[%clk 0:02:08.5]}
15... Qxf3 {[%clk 0:02:55.8]} 16. Bxf3 {[%clk 0:02:09.4]} 16... Be6 {[%clk
0:02:56.2]} 17. Rge1 {[%clk 0:02:04.4]} 17... Kd7 {[%clk 0:02:55.6]} 18. c4
{[%clk 0:01:59.2]} 18... Rc8 {[%clk 0:02:24.5]} 19. b3 {[%clk 0:01:58.4]} 19...
Bb4 {[%clk 0:02:03.9]} 20. Re3 {[%clk 0:01:47.5]} 20... Bc5 {[%clk 0:01:52.9]}
21. Kb2 {[%clk 0:01:29.8]} 21... Bxd4+ {[%clk 0:01:49.3]} 22. Rxd4 {[%clk
0:01:30.7]} 22... Kc7 {[%clk 0:00:36.6]} 23. cxd5 {[%clk 0:01:20.9]} 23... Bd7
{[%clk 0:00:36.9]} 24. d6+ {[%clk 0:01:11]} 24... Kb8 {[%clk 0:00:30.7]} 25. Re7
{[%clk 0:01:06.9]} 25... Bc6 {[%clk 0:00:23.6]} 26. Bxc6 {[%clk 0:00:47.5]}
26... Rxc6 {[%clk 0:00:18.1]} 27. Rxf7 {[%clk 0:00:34.7]} 27... Rd8 {[%clk
0:00:17.8]} 28. d7 {[%clk 0:00:29]} 28... Rf6 {[%clk 0:00:17.9]} 29. Rxf6 {[%clk
0:00:17.6]} 29... gxf6 {[%clk 0:00:18.2]} 30. Kc3 {[%clk 0:00:17.8]} 30... Kc7
{[%clk 0:00:18.9]} 31. Kc4 {[%clk 0:00:18]} 31... Kc6 {[%clk 0:00:17.8]} 32. a4
{[%clk 0:00:16.7]} 32... b6 {[%clk 0:00:17.2]} 33. b4 {[%clk 0:00:16.2]} 33...
a6 {[%clk 0:00:16.4]} 34. b5+ {[%clk 0:00:16.4]} 34... axb5+ {[%clk 0:00:17]}
35. axb5+ {[%clk 0:00:17.3]} 35... Kc7 {[%clk 0:00:17.6]} 36. f4 {[%clk
0:00:17.1]} 36... Rxd7 {[%clk 0:00:12.4]} 37. Rxd7+ {[%clk 0:00:17]} 37... Kxd7
{[%clk 0:00:13.3]} 38. Kd5 {[%clk 0:00:17.4]} 38... Ke7 {[%clk 0:00:13.4]} 39.
Kc6 {[%clk 0:00:17.5]} 39... f5 {[%clk 0:00:13.8]} 40. gxf5 {[%clk 0:00:12.6]}
40... h5 {[%clk 0:00:14]} 41. Kxb6 {[%clk 0:00:07.9]} 41... h4 {[%clk
0:00:14.1]} 42. Kc7 {[%clk 0:00:08.3]} 42... h3 {[%clk 0:00:14.7]} 43. b6 {[%clk
0:00:08.7]} 43... h2 {[%clk 0:00:15.4]} 44. b7 {[%clk 0:00:09.1]} 44... h1=Q
{[%clk 0:00:16]} 45. b8=Q {[%clk 0:00:09.6]} 45... Qc1+ {[%clk 0:00:15.9]} 46.
Kb6 {[%clk 0:00:08.9]} 46... Qb2+ {[%clk 0:00:15.1]} 47. Ka7 {[%clk 0:00:08.7]}
47... Qxb8+ {[%clk 0:00:15.5]} 48. Kxb8 {[%clk 0:00:08.7]} 48... Kf6 {[%clk
0:00:16.4]} 49. Kc7 {[%clk 0:00:09.1]} 49... Kxf5 {[%clk 0:00:17.3]} 50. Kd6
{[%clk 0:00:08.8]} 50... Kxf4 {[%clk 0:00:18.2]} 1/2-1/2

[Event "*** SCC Grand Prix: Titled Tuesday Blitz"]
[Site "Chess.com"]
[Date "2020.07.21"]
[Round "10"]
[White "lelya96"]
[Black "tandaleo"]
[Result "0-1"]
[WhiteElo "2188"]
[BlackElo "2313"]
[TimeControl "180+1"]
[EndTime "12:00:15 PDT"]
[Termination "tandaleo won by checkmate"]

1. e4 {[%clk 0:03:00.9]} 1... e5 {[%clk 0:02:58.8]} 2. Nf3 {[%clk 0:02:58.3]}
2... Nc6 {[%clk 0:02:58.7]} 3. d4 {[%clk 0:02:56.6]} 3... exd4 {[%clk
0:02:59.6]} 4. Nxd4 {[%clk 0:02:56.1]} 4... Nf6 {[%clk 0:02:59.4]} 5. Nc3 {[%clk
0:02:55.3]} 5... Bb4 {[%clk 0:02:58.7]} 6. Nxc6 {[%clk 0:02:54.4]} 6... bxc6
{[%clk 0:02:59.6]} 7. Bd3 {[%clk 0:02:54.9]} 7... O-O {[%clk 0:02:58.8]} 8. O-O
{[%clk 0:02:54.6]} 8... Rb8 {[%clk 0:02:58.2]} 9. Qf3 {[%clk 0:02:51.9]} 9...
Re8 {[%clk 0:02:56.3]} 10. h3 {[%clk 0:02:50.4]} 10... Be7 {[%clk 0:02:39.7]}
11. Bf4 {[%clk 0:02:47.3]} 11... d6 {[%clk 0:02:39.4]} 12. e5 {[%clk 0:02:43.2]}
12... dxe5 {[%clk 0:02:03]} 13. Bxe5 {[%clk 0:02:40.8]} 13... Bd6 {[%clk
0:02:02.1]} 14. Bd4 {[%clk 0:01:53.2]} 14... c5 {[%clk 0:01:57.6]} 15. Bxf6
{[%clk 0:01:48.8]} 15... Qxf6 {[%clk 0:01:57.3]} 16. Qxf6 {[%clk 0:01:47.3]}
16... gxf6 {[%clk 0:01:58.2]} 17. Nd5 {[%clk 0:01:46.4]} 17... Kg7 {[%clk
0:01:57.5]} 18. b3 {[%clk 0:01:45.2]} 18... Bb7 {[%clk 0:01:52.4]} 19. Ne3
{[%clk 0:01:44.2]} 19... Be5 {[%clk 0:01:44.9]} 20. Rad1 {[%clk 0:01:41.2]}
20... Rbd8 {[%clk 0:01:42.7]} 21. Nf5+ {[%clk 0:01:38.8]} 21... Kh8 {[%clk
0:01:42.7]} 22. Bc4 {[%clk 0:01:35.8]} 22... Kg8 {[%clk 0:01:23.5]} 23. Nh6+
{[%clk 0:01:34.4]} 23... Kg7 {[%clk 0:01:23.6]} 24. Rxd8 {[%clk 0:01:30.8]}
24... Rxd8 {[%clk 0:01:22.7]} 25. Nxf7 {[%clk 0:01:31.2]} 25... Rd2 {[%clk
0:01:22.4]} 26. Nxe5 {[%clk 0:01:29.5]} 26... fxe5 {[%clk 0:01:22.5]} 27. Re1
{[%clk 0:01:26.3]} 27... e4 {[%clk 0:01:14.7]} 28. Re2 {[%clk 0:01:25.9]} 28...
Rd1+ {[%clk 0:01:14.7]} 29. Kh2 {[%clk 0:01:25.7]} 29... Kf6 {[%clk 0:01:12.9]}
30. Kg3 {[%clk 0:01:24.7]} 30... Kf5 {[%clk 0:01:10.5]} 31. f3 {[%clk
0:01:14.8]} 31... exf3 {[%clk 0:01:07.6]} 32. gxf3 {[%clk 0:01:14.5]} 32... Rg1+
{[%clk 0:01:04.1]} 33. Kf2 {[%clk 0:01:13.1]} 33... Rh1 {[%clk 0:01:04.2]} 34.
a4 {[%clk 0:01:09.1]} 34... Kf4 {[%clk 0:00:59.2]} 35. Re7 {[%clk 0:00:52.9]}
35... Rh2+ {[%clk 0:00:18.5]} 36. Kg1 {[%clk 0:00:51.7]} 36... Rxc2 {[%clk
0:00:18.5]} 37. Rf7+ {[%clk 0:00:49]} 37... Kg3 {[%clk 0:00:18.2]} 38. Rg7+
{[%clk 0:00:47.4]} 38... Kxh3 {[%clk 0:00:18.4]} 39. Rxh7+ {[%clk 0:00:47.1]}
39... Kg3 {[%clk 0:00:18.3]} 40. Rg7+ {[%clk 0:00:46.6]} 40... Kxf3 {[%clk
0:00:18.4]} 41. Rxc7 {[%clk 0:00:45.3]} 41... Be4 {[%clk 0:00:16.9]} 42. Rf7+
{[%clk 0:00:41.3]} 42... Kg3 {[%clk 0:00:13.9]} 43. Rg7+ {[%clk 0:00:39.6]}
43... Kf4 {[%clk 0:00:13.2]} 44. Rf7+ {[%clk 0:00:38.5]} 44... Ke3 {[%clk
0:00:13.5]} 45. Rxa7 {[%clk 0:00:35.4]} 45... Rh2 {[%clk 0:00:09.7]} 46. Re7
{[%clk 0:00:12.9]} 46... Rh1# {[%clk 0:00:03]} 0-1

[Event "*** SCC Grand Prix: Titled Tuesday Blitz"]
[Site "Chess.com"]
[Date "2020.07.21"]
[Round "10"]
[White "26andrej26"]
[Black "Gusarov91"]
[Result "0-1"]
[WhiteElo "2532"]
[BlackElo "2649"]
[TimeControl "180+1"]
[EndTime "12:00:18 PDT"]
[Termination "Gusarov91 won by resignation"]

1. e4 {[%clk 0:03:00.9]} 1... c6 {[%clk 0:02:55.6]} 2. Nc3 {[%clk 0:03:00.4]}
2... Na6 {[%clk 0:02:55.9]} 3. Bxa6 {[%clk 0:02:58.6]} 3... bxa6 {[%clk
0:02:56.1]} 4. d4 {[%clk 0:02:59.5]} 4... g6 {[%clk 0:02:55.6]} 5. Nge2 {[%clk
0:02:59.8]} 5... Bg7 {[%clk 0:02:56.1]} 6. O-O {[%clk 0:03:00.4]} 6... Rb8
{[%clk 0:02:56.7]} 7. b3 {[%clk 0:02:47.6]} 7... a5 {[%clk 0:02:53.3]} 8. Bf4
{[%clk 0:02:46.6]} 8... d6 {[%clk 0:02:51.3]} 9. Qd2 {[%clk 0:02:42]} 9... Ba6
{[%clk 0:02:45.4]} 10. Rfe1 {[%clk 0:02:40.7]} 10... e5 {[%clk 0:02:34]} 11. Be3
{[%clk 0:02:37.4]} 11... Ne7 {[%clk 0:02:26.8]} 12. dxe5 {[%clk 0:02:30.8]}
12... Bxe5 {[%clk 0:02:26.6]} 13. Bd4 {[%clk 0:02:27.5]} 13... O-O {[%clk
0:02:25.3]} 14. Bxe5 {[%clk 0:02:27.4]} 14... dxe5 {[%clk 0:02:25.5]} 15. Qe3
{[%clk 0:02:26.6]} 15... Bxe2 {[%clk 0:02:23.8]} 16. Rxe2 {[%clk 0:02:22.4]}
16... Qd4 {[%clk 0:02:23.4]} 17. Rd1 {[%clk 0:02:20.1]} 17... Qb4 {[%clk
0:02:00.7]} 18. Na4 {[%clk 0:02:18.7]} 18... Rfd8 {[%clk 0:01:58.9]} 19. Red2
{[%clk 0:02:18.4]} 19... Rxd2 {[%clk 0:01:58.6]} 20. Qxd2 {[%clk 0:02:18.6]}
20... Qxe4 {[%clk 0:01:58.4]} 21. Re1 {[%clk 0:01:58.7]} 21... Qb4 {[%clk
0:01:46.2]} 22. c3 {[%clk 0:01:48.3]} 22... Qb5 {[%clk 0:01:42.2]} 23. Qd6
{[%clk 0:01:47.4]} 23... Nf5 {[%clk 0:01:41.7]} 24. Qxe5 {[%clk 0:01:45.9]}
24... Qxe5 {[%clk 0:01:35.3]} 25. Rxe5 {[%clk 0:01:46.8]} 25... Rd8 {[%clk
0:01:35.5]} 26. g3 {[%clk 0:01:40.2]} 26... Rd1+ {[%clk 0:01:30.7]} 27. Kg2
{[%clk 0:01:39.4]} 27... Rd2 {[%clk 0:01:31]} 28. Rxa5 {[%clk 0:01:37.9]} 28...
Rxa2 {[%clk 0:01:31.2]} 29. Rxa7 {[%clk 0:01:33.9]} 29... Ne3+ {[%clk
0:01:31.3]} 30. Kf3 {[%clk 0:01:32]} 30... Nd1 {[%clk 0:01:31.5]} 31. Rd7 {[%clk
0:01:11.1]} 31... Rxf2+ {[%clk 0:01:21]} 32. Kg4 {[%clk 0:01:11.2]} 32... Ne3+
{[%clk 0:01:20.4]} 33. Kh3 {[%clk 0:01:10.9]} 33... h5 {[%clk 0:01:20.2]} 34. g4
{[%clk 0:00:50]} 34... hxg4+ {[%clk 0:01:05.9]} 35. Kh4 {[%clk 0:00:44.6]} 35...
Kg7 {[%clk 0:00:55.3]} 36. Rd3 {[%clk 0:00:40.5]} 36... Rxh2+ {[%clk 0:00:51.3]}
37. Kg3 {[%clk 0:00:37.7]} 37... Rg2+ {[%clk 0:00:49]} 38. Kf4 {[%clk
0:00:33.2]} 38... Nd5+ {[%clk 0:00:47.5]} 39. Ke5 {[%clk 0:00:31.6]} 39... g3
{[%clk 0:00:45.5]} 40. Kd6 {[%clk 0:00:19.6]} 40... Nf4 {[%clk 0:00:43.3]} 41.
Rf3 {[%clk 0:00:17.2]} 41... Rd2+ {[%clk 0:00:43.5]} 42. Kxc6 {[%clk 0:00:15.5]}
42... g2 {[%clk 0:00:43.8]} 43. Rg3 {[%clk 0:00:15]} 43... Nh3 {[%clk
0:00:43.2]} 44. b4 {[%clk 0:00:13.1]} 44... g1=Q {[%clk 0:00:43.4]} 45. Rxg1
{[%clk 0:00:13.2]} 45... Nxg1 {[%clk 0:00:44.2]} 46. b5 {[%clk 0:00:14.1]} 46...
Ne2 {[%clk 0:00:42.5]} 47. c4 {[%clk 0:00:10.1]} 47... Nd4+ {[%clk 0:00:41.1]}
48. Kc5 {[%clk 0:00:09.5]} 48... Ne6+ {[%clk 0:00:36.9]} 49. Kc6 {[%clk
0:00:09.6]} 49... g5 {[%clk 0:00:35.8]} 50. b6 {[%clk 0:00:09.4]} 50... g4
{[%clk 0:00:36]} 51. c5 {[%clk 0:00:08.3]} 51... g3 {[%clk 0:00:35.9]} 52. Kb5
{[%clk 0:00:08.7]} 52... Rd1 {[%clk 0:00:34.2]} 53. Nc3 {[%clk 0:00:07.5]} 53...
Rd8 {[%clk 0:00:32.5]} 54. c6 {[%clk 0:00:07.4]} 54... Nd4+ {[%clk 0:00:30.1]}
55. Kc5 {[%clk 0:00:07.2]} 55... Nxc6 {[%clk 0:00:30.4]} 56. Kxc6 {[%clk
0:00:07.7]} 56... Rc8+ {[%clk 0:00:30.9]} 57. Kd7 {[%clk 0:00:08]} 57... Rxc3
{[%clk 0:00:31]} 0-1

[Event "*** SCC Grand Prix: Titled Tuesday Blitz"]
[Site "Chess.com"]
[Date "2020.07.21"]
[Round "10"]
[White "XDPS"]
[Black "LuckSlayeer"]
[Result "1-0"]
[WhiteElo "2698"]
[BlackElo "2421"]
[TimeControl "180+1"]
[EndTime "12:00:19 PDT"]
[Termination "XDPS won by resignation"]

1. e4 {[%clk 0:03:00.9]} 1... c5 {[%clk 0:03:00]} 2. Nf3 {[%clk 0:03:01.1]} 2...
Nc6 {[%clk 0:03:00.5]} 3. d4 {[%clk 0:02:59.2]} 3... cxd4 {[%clk 0:03:01.4]} 4.
Nxd4 {[%clk 0:03:00]} 4... e5 {[%clk 0:03:01.9]} 5. Nb5 {[%clk 0:02:59.4]} 5...
d6 {[%clk 0:03:02.4]} 6. c4 {[%clk 0:02:59.2]} 6... Be7 {[%clk 0:03:01.8]} 7.
N1c3 {[%clk 0:02:58.8]} 7... a6 {[%clk 0:03:02.2]} 8. Na3 {[%clk 0:02:59.1]}
8... f5 {[%clk 0:03:01.7]} 9. exf5 {[%clk 0:02:58.7]} 9... Bxf5 {[%clk
0:03:02.6]} 10. Bd3 {[%clk 0:02:59.4]} 10... Be6 {[%clk 0:03:03]} 11. O-O {[%clk
0:02:59.2]} 11... Nf6 {[%clk 0:03:03.7]} 12. Nc2 {[%clk 0:02:58.9]} 12... O-O
{[%clk 0:03:04.2]} 13. Ne3 {[%clk 0:02:59.5]} 13... Rc8 {[%clk 0:03:04.5]} 14.
b3 {[%clk 0:03:00]} 14... Kh8 {[%clk 0:03:04.4]} 15. Bb2 {[%clk 0:03:00.6]}
15... Qe8 {[%clk 0:03:04.7]} 16. Bf5 {[%clk 0:02:55.6]} 16... Nd4 {[%clk
0:02:55.2]} 17. Bxe6 {[%clk 0:02:54.2]} 17... Nxe6 {[%clk 0:02:56.1]} 18. Ncd5
{[%clk 0:02:54.2]} 18... Nxd5 {[%clk 0:02:46.7]} 19. Nxd5 {[%clk 0:02:47.6]}
19... Nf4 {[%clk 0:02:30]} 20. Nxf4 {[%clk 0:02:44.1]} 20... Rxf4 {[%clk
0:02:30.9]} 21. f3 {[%clk 0:02:43.4]} 21... Qg6 {[%clk 0:02:13.3]} 22. Qe2
{[%clk 0:02:38.9]} 22... Bd8 {[%clk 0:02:07.8]} 23. Rfd1 {[%clk 0:02:38]} 23...
Bb6+ {[%clk 0:02:07.7]} 24. Kh1 {[%clk 0:02:37.6]} 24... Rh4 {[%clk 0:02:01.8]}
25. h3 {[%clk 0:02:23.2]} 25... Qg3 {[%clk 0:01:38.9]} 26. Rd3 {[%clk 0:02:18]}
26... Rf8 {[%clk 0:01:18.3]} 27. Bc3 {[%clk 0:02:06.7]} 27... Qg6 {[%clk
0:00:50.7]} 28. Rad1 {[%clk 0:01:19.1]} 28... Qe6 {[%clk 0:00:24.1]} 29. Qf1
{[%clk 0:00:45.1]} 29... Rh6 {[%clk 0:00:16.3]} 30. Rxd6 {[%clk 0:00:27.8]}
30... Qxd6 {[%clk 0:00:09.1]} 31. Rxd6 {[%clk 0:00:28.7]} 31... Rxd6 {[%clk
0:00:09.4]} 32. Bb4 {[%clk 0:00:29.3]} 32... Rfd8 {[%clk 0:00:07.7]} 33. Bxd6
{[%clk 0:00:29.3]} 33... Rxd6 {[%clk 0:00:08.3]} 34. Qe2 {[%clk 0:00:26.4]}
34... Bd4 {[%clk 0:00:06.7]} 35. h4 {[%clk 0:00:16.7]} 35... g6 {[%clk
0:00:05.9]} 36. Kh2 {[%clk 0:00:16.9]} 36... Rd7 {[%clk 0:00:06.2]} 37. Kh3
{[%clk 0:00:17.1]} 37... Kg7 {[%clk 0:00:06.8]} 38. Qe4 {[%clk 0:00:17.2]} 38...
Rf7 {[%clk 0:00:05.7]} 39. g3 {[%clk 0:00:16.4]} 39... b6 {[%clk 0:00:05.8]} 40.
b4 {[%clk 0:00:16.3]} 40... Rd7 {[%clk 0:00:04.6]} 41. c5 {[%clk 0:00:16]} 41...
bxc5 {[%clk 0:00:04.5]} 42. bxc5 {[%clk 0:00:16.9]} 42... Rc7 {[%clk 0:00:03.9]}
43. c6 {[%clk 0:00:17.4]} 43... Kf6 {[%clk 0:00:04.5]} 44. Qd5 {[%clk
0:00:17.6]} 44... Re7 {[%clk 0:00:03.7]} 45. Qd6+ {[%clk 0:00:17.4]} 45... Kf7
{[%clk 0:00:02.7]} 46. c7 {[%clk 0:00:17.3]} 46... Re8 {[%clk 0:00:02.7]} 47.
Qd7+ {[%clk 0:00:17.4]} 47... Re7 {[%clk 0:00:02.5]} 48. Qd5+ {[%clk 0:00:15.6]}
48... Kf6 {[%clk 0:00:01.8]} 49. c8=Q {[%clk 0:00:16.5]} 1-0

[Event "*** SCC Grand Prix: Titled Tuesday Blitz"]
[Site "Chess.com"]
[Date "2020.07.21"]
[Round "10"]
[White "czasnaszachy"]
[Black "a3aki"]
[Result "0-1"]
[WhiteElo "2207"]
[BlackElo "2050"]
[TimeControl "180+1"]
[EndTime "12:00:19 PDT"]
[Termination "a3aki won on time"]

1. d4 {[%clk 0:03:00.9]} 1... Nf6 {[%clk 0:02:59.1]} 2. c4 {[%clk 0:02:42.8]}
2... g6 {[%clk 0:02:58.5]} 3. Nc3 {[%clk 0:02:39.1]} 3... Bg7 {[%clk 0:02:56.7]}
4. e4 {[%clk 0:02:37.9]} 4... d6 {[%clk 0:02:56.3]} 5. Bg5 {[%clk 0:02:30.2]}
5... O-O {[%clk 0:02:54]} 6. f3 {[%clk 0:02:15.9]} 6... Nc6 {[%clk 0:02:45.9]}
7. Qd2 {[%clk 0:02:10.4]} 7... a6 {[%clk 0:02:34.9]} 8. Nge2 {[%clk 0:02:06.5]}
8... Na5 {[%clk 0:02:33.8]} 9. Ng3 {[%clk 0:01:58]} 9... Nd7 {[%clk 0:02:28]}
10. h4 {[%clk 0:01:38.9]} 10... Nc6 {[%clk 0:02:21.9]} 11. Be3 {[%clk 0:01:27]}
11... e5 {[%clk 0:02:19]} 12. d5 {[%clk 0:01:26.9]} 12... Ne7 {[%clk 0:02:16.4]}
13. h5 {[%clk 0:01:26.2]} 13... f5 {[%clk 0:02:14.7]} 14. exf5 {[%clk
0:01:24.1]} 14... gxf5 {[%clk 0:02:14.4]} 15. Bh6 {[%clk 0:01:23.2]} 15... f4
{[%clk 0:02:11]} 16. Bxg7 {[%clk 0:01:21.5]} 16... Kxg7 {[%clk 0:02:11.6]} 17.
Nge4 {[%clk 0:01:21.1]} 17... Nf5 {[%clk 0:02:09.3]} 18. g4 {[%clk 0:01:10.7]}
18... Ne3 {[%clk 0:02:04.9]} 19. Nd1 {[%clk 0:01:02.2]} 19... Nxf1 {[%clk
0:02:00.9]} 20. Rxf1 {[%clk 0:00:59.6]} 20... Qh4+ {[%clk 0:01:58.8]} 21. Ndf2
{[%clk 0:00:58.3]} 21... Nf6 {[%clk 0:01:57.9]} 22. O-O-O {[%clk 0:00:54.4]}
22... Nxe4 {[%clk 0:01:51]} 23. Nxe4 {[%clk 0:00:53.3]} 23... h6 {[%clk
0:01:46.8]} 24. Rg1 {[%clk 0:00:47.2]} 24... Bd7 {[%clk 0:01:36.1]} 25. g5
{[%clk 0:00:45.4]} 25... hxg5 {[%clk 0:01:35.1]} 26. Rxg5+ {[%clk 0:00:44.8]}
26... Kh8 {[%clk 0:01:33.7]} 27. Rdg1 {[%clk 0:00:33.6]} 27... Rg8 {[%clk
0:01:31.6]} 28. Rxg8+ {[%clk 0:00:16.8]} 28... Rxg8 {[%clk 0:01:32.5]} 29. Rxg8+
{[%clk 0:00:17]} 29... Kxg8 {[%clk 0:01:32.6]} 30. Qg2+ {[%clk 0:00:17.6]} 30...
Kh8 {[%clk 0:01:22.8]} 31. Qg6 {[%clk 0:00:16]} 31... Qe1+ {[%clk 0:01:17.1]}
32. Kc2 {[%clk 0:00:15.7]} 32... Qe2+ {[%clk 0:00:43.6]} 33. Nd2 {[%clk
0:00:13.6]} 33... Bh3 {[%clk 0:00:20.6]} 34. Qh6+ {[%clk 0:00:10.7]} 34... Kg8
{[%clk 0:00:20]} 35. Qg6+ {[%clk 0:00:09.6]} 35... Kh8 {[%clk 0:00:19.7]} 36. h6
{[%clk 0:00:08.9]} 36... Qg2 {[%clk 0:00:19]} 37. Qf6+ {[%clk 0:00:07.6]} 37...
Kh7 {[%clk 0:00:19.1]} 38. Qe7+ {[%clk 0:00:06.6]} 38... Kxh6 {[%clk 0:00:19.1]}
39. Qxc7 {[%clk 0:00:05.9]} 39... Bf5+ {[%clk 0:00:18.8]} 40. Kc3 {[%clk
0:00:04.9]} 40... Qe2 {[%clk 0:00:18.8]} 41. Qxd6+ {[%clk 0:00:04.8]} 41... Kh5
{[%clk 0:00:15.5]} 42. b4 {[%clk 0:00:02]} 42... Qd3+ {[%clk 0:00:15.6]} 43. Kb2
{[%clk 0:00:02.1]} 43... Qxd2+ {[%clk 0:00:16.3]} 44. Ka3 {[%clk 0:00:02.5]}
44... Qc3+ {[%clk 0:00:16]} 45. Ka4 {[%clk 0:00:02.5]} 45... Bc2+ {[%clk
0:00:14.2]} 46. Ka5 {[%clk 0:00:02.5]} 46... Qxc4 {[%clk 0:00:09.7]} 47. Qxe5+
{[%clk 0:00:02.1]} 47... Kh4 {[%clk 0:00:10.2]} 48. Qh8+ {[%clk 0:00:01.9]}
48... Kg3 {[%clk 0:00:10.2]} 49. Qg7+ {[%clk 0:00:01.2]} 49... Kf2 {[%clk
0:00:09.2]} 0-1